[Event "Sheffield Masters 2024"]
[White "O`Gorman,Tom"]
[Black "Chow,Samuel"]
[Site "Sheffield"]
[Round "1"]
[Annotator "ChessBase"]
[Result "1/2-1/2"]
[Date "2024.04.10"]
[WhiteElo "2321"]
[BlackElo "2350"]
[PlyCount "297"]
[TimeControl "5400+30"]

1. e4 {[%emt 0:0:8]} e6 {[%emt 0:0:12]} 2. d4 {[%emt 0:0:8]} d5 {[%emt 0:0:9]} 3. Nc3 {[%emt 0:0:14]} Nf6 {[%emt 0:0:34]} 4. e5 {[%emt 0:0:7]} Nfd7 {[%emt 0:0:11]} 5. f4 {[%emt 0:0:7]} c5 {[%emt 0:0:11]} 6. Nf3 {[%emt 0:0:6]} Nc6 {[%emt 0:0:29]} 7. Be3 {[%emt 0:0:8]} a6 {[%emt 0:0:34]} 8. Qd2 {[%emt 0:0:15]} b5 {[%emt 0:0:37]} 9. Bd3 {[%emt 0:0:36]} Qa5 {[%emt 0:19:52]} 10. O-O {[%emt 0:10:45]} b4 {[%emt 0:2:16]} 11. Nd1 {[%emt 0:1:0]} cxd4 {[%emt 0:1:2]} 12. Nxd4 {[%emt 0:3:1]} Nxd4 {[%emt 0:0:11]} 13. Bxd4 {[%emt 0:0:8]} Bc5 {[%emt 0:0:24]} 14. Bxc5 {[%emt 0:4:40]} Qxc5+ {[%emt 0:1:20]} 15. Kh1 {[%emt 0:0:58]} O-O {[%emt 0:3:49]} 16. a3 {[%emt 0:11:42]} bxa3 {[%emt 0:0:25]} 17. Rxa3 {[%emt 0:0:8]} f6 {[%emt 0:3:30]} 18. exf6 {[%emt 0:12:28]} Nxf6 {[%emt 0:0:17]} 19. Ne3 {[%emt 0:2:37]} Bb7 {[%emt 0:4:46]} 20. Qe2 {[%emt 0:3:40]} Qd6 {[%emt 0:6:15]} 21. Ng4 {[%emt 0:14:9]} Nxg4 {[%emt 0:2:55]} 22. Qxg4 {[%emt 0:0:8]} Rf6 {[%emt 0:9:21]} 23. Qh5 {[%emt 0:4:18]} h6 {[%emt 0:2:8]} 24. Qe5 {[%emt 0:0:58]} Qxe5 {[%emt 0:13:1]} 25. fxe5 {[%emt 0:0:8]} Rxf1+ {[%emt 0:0:11]} 26. Bxf1 {[%emt 0:0:4]} d4 {[%emt 0:2:21]} 27. Bd3 {[%emt 0:7:29]} Rc8 {[%emt 0:6:59]} 28. Ra4 {[%emt 0:8:18]} Rc5 {[%emt 0:1:5]} 29. Rxd4 {[%emt 0:0:7]} Rxe5 {[%emt 0:0:5]} 30. Kg1 {[%emt 0:0:7]} Rd5 {[%emt 0:9:20]} 31. Rb4 {[%emt 0:3:48]} Rd7 {[%emt 0:2:4]} 32. Rb6 {[%emt 0:1:34]} Kf7 {[%emt 0:0:16]} 33. b4 {[%emt 0:2:27]} Kf6 {[%emt 0:2:7]} 34. Kf2 {[%emt 0:0:30]} Ke5 {[%emt 0:0:45]} 35. Ke3 {[%emt 0:3:12]} Bxg2 {[%emt 0:2:50]} 36. Rxa6 {[%emt 0:0:7]} Rf7 {[%emt 0:0:52]} 37. Ra5+ {[%emt 0:2:12]} Kd6 {[%emt 0:0:15]} 38. c4 {[%emt 0:0:54]} Rf3+ {[%emt 0:1:36]} 39. Kd2 {[%emt 0:0:41]} Rh3 {[%emt 0:0:32]} 40. Ra7 {[%emt 0:5:38]} g5 {[%emt 0:0:54]} 41. c5+ {[%emt 0:0:29]} Ke5 {[%emt 0:0:32]} 42. Be2 {[%emt 0:0:38]} Rxh2 {[%emt 0:0:39]} 43. Ke3 {[%emt 0:0:8]} Rh3+ {[%emt 0:1:7]} 44. Kf2 {[%emt 0:0:9]} Bd5 {[%emt 0:0:37]} 45. b5 {[%emt 0:0:53]} Rc3 {[%emt 0:0:29]} 46. c6 {[%emt 0:0:26]} Rc2 {[%emt 0:2:6]} 47. c7 {[%emt 0:0:37]} Kd6 {[%emt 0:0:28]} 48. b6 {[%emt 0:0:11]} e5 {[%emt 0:1:7]} 49. Ke3 {[%emt 0:0:34]} Be6 {[%emt 0:0:5]} 50. Ra8 {[%emt 0:0:45]} Rc3+ {[%emt 0:0:23]} 51. Kd2 {[%emt 0:0:10]} Rb3 {[%emt 0:0:3]} 52. Rd8+ {[%emt 0:1:2]} Kc6 {[%emt 0:0:29]} 53. c8=Q+ {[%emt 0:0:23]} Bxc8 {[%emt 0:0:4]} 54. Rxc8+ {[%emt 0:0:4]} Kb7 {[%emt 0:0:9]} 55. Re8 {[%emt 0:0:17]} Rxb6 {[%emt 0:0:10]} 56. Rxe5 {[%emt 0:0:6]} Rf6 {[%emt 0:0:31]} 57. Ke3 {[%emt 0:0:13]} Kc7 {[%emt 0:0:16]} 58. Kd4 {[%emt 0:0:36]} Kd6 {[%emt 0:0:13]} 59. Rd5+ {[%emt 0:0:5]} Ke7 {[%emt 0:0:8]} 60. Ra5 {[%emt 0:0:46]} Kd6 {[%emt 0:0:22]} 61. Bh5 {[%emt 0:0:27]} Rf4+ {[%emt 0:0:23]} 62. Ke3 {[%emt 0:0:7]} Rf6 {[%emt 0:0:5]} 63. Bg4 {[%emt 0:0:36]} Rf4 {[%emt 0:0:41]} 64. Be2 {[%emt 0:0:15]} Rf6 {[%emt 0:0:5]} 65. Bd3 {[%emt 0:0:6]} Ke7 {[%emt 0:0:49]} 66. Bf5 {[%emt 0:0:12]} Rb6 {[%emt 0:0:17]} 67. Kf3 {[%emt 0:0:17]} Kf6 {[%emt 0:0:7]} 68. Bc2 {[%emt 0:1:47]} Rc6 {[%emt 0:0:42]} 69. Bd3 {[%emt 0:0:17]} Rd6 {[%emt 0:0:44]} 70. Be4 {[%emt 0:0:19]} Rb6 {[%emt 0:0:23]} 71. Rd5 {[%emt 0:1:43]} Rb3+ {[%emt 0:0:22]} 72. Bd3 {[%emt 0:0:6]} Rb6 {[%emt 0:1:11]} 73. Rf5+ {[%emt 0:1:6]} Kg7 {[%emt 0:0:26]} 74. Rc5 {[%emt 0:0:11]} Kf6 {[%emt 0:0:21]} 75. Kg4 {[%emt 0:0:8]} Rb4+ {[%emt 0:0:53]} 76. Bc4 {[%emt 0:0:7]} Rb2 {[%emt 0:0:54]} 77. Rc6+ {[%emt 0:0:31]} Kg7 {[%emt 0:0:25]} 78. Bd3 {[%emt 0:0:54]} Rb3 {[%emt 0:0:39]} 79. Rg6+ {[%emt 0:0:36]} Kf7 {[%emt 0:0:14]} 80. Rd6 {[%emt 0:0:6]} Ke7 {[%emt 0:0:26]} 81. Rd4 {[%emt 0:0:18]} Rb6 {[%emt 0:0:29]} 82. Kh5 {[%emt 0:0:17]} Kf6 {[%emt 0:1:11]} 83. Bg6 {[%emt 0:1:45]} Rb2 {[%emt 0:1:47]} 84. Kxh6 {[%emt 0:0:21]} Rg2 {[%emt 0:0:40]} 85. Ra4 {[%emt 0:1:13]} Rg1 {[%emt 0:0:36]} 86. Be4 {[%emt 0:0:46]} Rg4 {[%emt 0:0:35]} 87. Ra6+ {[%emt 0:0:4]} Ke5 {[%emt 0:0:6]} 88. Bb7 {[%emt 0:0:40]} Rg1 {[%emt 0:0:34]} 89. Kh5 {[%emt 0:0:18]} Kf5 {[%emt 0:1:10]} 90. Bc8+ {[%emt 0:0:19]} Kf4 {[%emt 0:0:20]} 91. Ra4+ {[%emt 0:0:4]} Ke5 {[%emt 0:0:41]} 92. Bg4 {[%emt 0:0:10]} Rg2 {[%emt 0:0:23]} 93. Ra8 {[%emt 0:0:25]} Kf4 {[%emt 0:0:24]} 94. Rf8+ {[%emt 0:0:5]} Ke5 {[%emt 0:0:18]} 95. Kxg5 {[%emt 0:0:7]} Rg1 {[%emt 0:0:23]} 96. Re8+ {[%emt 0:0:6]} Kd6 {[%emt 0:0:31]} 97. Kf4 {[%emt 0:0:43]} Rf1+ {[%emt 0:0:29]} 98. Bf3 {[%emt 0:0:4]} Kc5 {[%emt 0:0:12]} 99. Rd8 {[%emt 0:1:7]} Kc4 {[%emt 0:0:18]} 100. Ke3 {[%emt 0:1:37]} Re1+ {[%emt 0:0:12]} 101. Kd2 {[%emt 0:0:6]} Rg1 {[%emt 0:0:45]} 102. Be4 {[%emt 0:0:28]} Rg3 {[%emt 0:0:14]} 103. Bd3+ {[%emt 0:0:5]} Kc5 {[%emt 0:0:10]} 104. Kc3 {[%emt 0:0:4]} Rh3 {[%emt 0:0:12]} 105. Rg8 {[%emt 0:0:7]} Rh5 {[%emt 0:0:18]} 106. Ra8 {[%emt 0:0:12]} Rh3 {[%emt 0:0:12]} 107. Ra5+ {[%emt 0:0:5]} Kb6 {[%emt 0:0:6]} 108. Re5 {[%emt 0:0:11]} Kc6 {[%emt 0:0:21]} 109. Kd4 {[%emt 0:0:9]} Kd6 {[%emt 0:0:11]} 110. Ra5 {[%emt 0:0:11]} Ke7 {[%emt 0:0:55]} 111. Be4 {[%emt 0:0:11]} Rh2 {[%emt 0:0:24]} 112. Ke5 {[%emt 0:0:10]} Re2 {[%emt 0:0:6]} 113. Ra7+ {[%emt 0:0:7]} Ke8 {[%emt 0:0:13]} 114. Kd5 {[%emt 0:0:11]} Kf8 {[%emt 0:0:8]} 115. Bf5 {[%emt 0:0:10]} Re7 {[%emt 0:0:40]} 116. Ra1 {[%emt 0:0:7]} Re2 {[%emt 0:0:35]} 117. Be4 {[%emt 0:0:37]} Ke7 {[%emt 0:0:20]} 118. Ke5 {[%emt 0:0:9]} Ke8 {[%emt 0:0:25]} 119. Ra6 {[%emt 0:5:5]} Re1 {[%emt 0:0:51]} 120. Ra7 {[%emt 0:1:7]} Re2 {[%emt 0:0:12]} 121. Kf5 {[%emt 0:0:4]} Kd8 {[%emt 0:0:9]} 122. Bd5 {[%emt 0:0:30]} Re7 {[%emt 0:0:20]} 123. Ra4 {[%emt 0:0:42]} Re1 {[%emt 0:0:16]} 124. Be6 {[%emt 0:0:13]} Ke7 {[%emt 0:0:34]} 125. Ra7+ {[%emt 0:0:13]} Kd6 {[%emt 0:0:14]} 126. Bc4 {[%emt 0:0:17]} Rc1 {[%emt 0:0:47]} 127. Bd3 {[%emt 0:0:13]} Rc5+ {[%emt 0:0:38]} 128. Kf4 {[%emt 0:0:12]} Rc1 {[%emt 0:1:0]} 129. Ke4 {[%emt 0:0:12]} Re1+ {[%emt 0:0:13]} 130. Kd4 {[%emt 0:0:5]} Ke6 {[%emt 0:0:28]} 131. Ra6+ {[%emt 0:0:5]} Ke7 {[%emt 0:0:11]} 132. Bc4 {[%emt 0:0:11]} Rd1+ {[%emt 0:0:52]} 133. Kc5 {[%emt 0:0:5]} Rc1 {[%emt 0:0:53]} 134. Re6+ {[%emt 0:0:22]} Kd7 {[%emt 0:0:49]} 135. Rf6 {[%emt 0:0:5]} Ke7 {[%emt 0:0:57]} 136. Rf7+ {[%emt 0:0:4]} Ke8 {[%emt 0:0:4]} 137. Ra7 {[%emt 0:0:20]} Kf8 {[%emt 0:1:1]} 138. Rc7 {[%emt 0:0:9]} Rb1 {[%emt 0:1:4]} 139. Kd6 {[%emt 0:0:13]} Rb6+ {[%emt 0:0:24]} 140. Ke5 {[%emt 0:0:5]} Rg6 {[%emt 0:0:54]} 141. Rf7+ {[%emt 0:4:36]} Kg8 {[%emt 0:0:36]} 142. Bd5 {[%emt 0:1:51]} Rg7 {[%emt 0:0:52]} 143. Rf1+ {[%emt 0:0:16]} Kh7 {[%emt 0:0:36]} 144. Bf7 {[%emt 0:0:17]} Rg2 {[%emt 0:0:38]} 145. Kf6 {[%emt 0:0:9]} Rg7 146. Ke5 Kh6 147. Kf6 Rg6+ 148. Ke5 Rg7 149. Kf6 1/2-1/2

[Event "Sheffield Masters 2024"]
[White "Dunnington,Angus J"]
[Black "Nagy,Gabor"]
[Site "Sheffield"]
[Round "1"]
[Annotator "TA"]
[Result "0-1"]
[Date "2024.04.10"]
[WhiteElo "2317"]
[BlackElo "2436"]
[PlyCount "88"]
[TimeControl "5400+30"]

{[%evp 16,88,23,10,35,0,7,-16,-10,0,0,0,13,-16,-19,-25,0,-38,28,12,16,10,42,19,30,15,8,10,18,18,22,0,0,-12,0,0,0,0,0,0,12,14,20,11,10,5,22,-20,-30,-29,-22,-113,-108,-152,-67,-86,-86,-93,-94,-106,-101,-94,-96,-100,-108,-213,-156,-213,-213,-213,-212,-254,-247,-238,-234]} 1. Nf3 {[%emt 0:0:4]} c5 {[%emt 0:0:32]} 2. c4 {[%emt 0:0:40]} Nc6 {[%emt 0:0:30]} 3. Nc3 {[%emt 0:4:24]} Nf6 {[%emt 0:2:6]} 4. g3 {[%emt 0:7:36]} d6 {[%emt 0:1:11]} 5. Bg2 {[%emt 0:1:25]} g6 {[%emt 0:0:23]} 6. O-O {[%emt 0:3:53]} Bg7 {[%emt 0:0:13]} 7. d4 {[%emt 0:2:54]} cxd4 {[%emt 0:0:28]} 8. Nxd4 {[%emt 0:0:4][%cal Yf3d4,Yd4c2,Yc2e3,Ye3d5][%mdl 32]} Bd7 {[%emt 0:0:15]} 9. Nc2 {[%emt 0:8:33]} Qc8 {[%emt 0:4:16]} 10. Ne3 {[%emt 0:3:59]} Bh3 {[%emt 0:1:1]} 11. Ncd5 {[%emt 0:3:58]} Bxg2 {[%emt 0:3:1] The position is equal.} 12. Nxf6+ {[%emt 0:4:15]} Bxf6 {[%emt 0:0:17]} 13. Kxg2 {[%emt 0:0:3]} Rb8 {[%emt 0:7:10]} 14. Nd5 {[%emt 0:14:7]} Bg7 {[%emt 0:0:29]} 15. e4 {[%emt 0:0:19]} e6 {[%emt 0:9:26]} 16. Ne3 {[%emt 0:5:23]} Qc7 {[%emt 0:2:48]} ({Black should try} 16... O-O $15 )17. Rb1 $11 {[%emt 0:4:42]} O-O {[%emt 0:3:34]} 18. b3 {[%emt 0:0:46]} Qa5 {[%emt 0:2:26]} 19. a4 {[%emt 0:9:8]} Rfd8 {[%emt 0:1:12]} 20. Bb2 {[%emt 0:4:25]} Bxb2 {[%emt 0:0:51]} 21. Rxb2 {[%emt 0:0:3]} Qe5 {[%emt 0:0:19]} 22. Qb1 {[%emt 0:0:21]} a6 {[%emt 0:0:36][%cal Ya7a6,Ya6b5][%mdl 32]} 23. f4 {[%emt 0:8:32]} Qc3 {[%emt 0:0:16]} 24. Nd1 {[%emt 0:5:1]} Qg7 {[%emt 0:2:5]} 25. Nf2 {[%emt 0:1:20]} b5 {[%emt 0:1:3]} 26. cxb5 {[%emt 0:1:45]} axb5 {[%emt 0:0:8]} 27. Rc1 {[%emt 0:0:27]} Nd4 {[%emt 0:3:6]} 28. a5 {[%emt 0:0:17]} b4 {[%emt 0:0:14]} 29. Rd2 {[%emt 0:2:42]} e5 $1 {[%emt 0:2:9]} 30. Rc4 {[%emt 0:1:4]} Ra8 {[%emt 0:4:40]} 31. Rxb4 {[%emt 0:1:12]} Rxa5 {[%emt 0:0:14]} 32. Qd1 {[%emt 0:1:54]} h5 {[%emt 0:1:9]} 33. Rbxd4 {[%emt 0:0:25]} (33. Nd3 $11 {keeps the balance.} )exd4 $17 {[%emt 0:0:8]} 34. Rxd4 {[%emt 0:0:2][%cal Yb3b4]} Rc8 {[%emt 0:1:21]} (34... Qf6 $17 35. e5 Qe7 (35... dxe5 $2 {perishes.} 36. Rxd8+ Kg7 37. fxe5 $18 ))35. Rxd6 {[%emt 0:0:15] [#] Rd8+ would now be deadly.} Ra2 {[%emt 0:0:41]} 36. Rd8+ {[%emt 0:0:29]} Rxd8 {[%emt 0:0:8]} 37. Qxd8+ {[%emt 0:0:1][%mdl 4096] Endgame. KQR-KQN} Qf8 {[%emt 0:0:28]} 38. Qd4 {[%emt 0:0:44]} (38. Qxf8+ Kxf8 39. Kf3 Rb2 )Qb8 {[%emt 0:1:36]} 39. f5 {[%emt 0:0:17]} gxf5 {[%emt 0:0:54] Black is more active.} (39... Qxb3 40. fxg6 fxg6 41. Qd8+ Kg7 42. Qd4+ Kh7 43. Qd7+ Kh6 44. Qd4 )40. exf5 {[%emt 0:0:34]} (40. Qd5 $17 )Qxb3 {[%emt 0:2:52]} 41. Kh3 {[%emt 0:1:23]} (41. Qf4 $17 {keeps fighting.} )Qf3 $19 {[%emt 0:0:27][%csl Yf2,Yf5]} 42. Qd8+ {[%emt 0:0:13]} Kh7 {[%emt 0:0:7]} 43. Qf6 {[%emt 0:1:47]} Ra7 {[%emt 0:0:16]} ({Not} 43... Rxf2 44. Qxf7+ Kh8 45. Qf8+ Kh7 46. Qf7+ Kh8 47. Qf8+ Kh7 48. Qf7+ $11 )44. Qd4 {[%emt 0:0:32]} Qxf5+ {[%emt 0:1:9] Weighted Error Value: White=0.22 (precise) /Black=0.14 (very precise) .  Mistake:       	White=3     	Black=2      Inaccurate:     	White=5     	Black=1      OK:         	White=12    	Black=14     Best:        	White=1     	Black=4      Strong:       	---       	Black=1} 0-1

[Event "Sheffield Masters 2024"]
[White "Kanyamarala,Trisha"]
[Black "Pal,Rohan"]
[Site "Sheffield"]
[Round "1"]
[Annotator "RC"]
[Result "1-0"]
[Date "2024.04.10"]
[WhiteElo "2285"]
[BlackElo "2142"]
[PlyCount "69"]
[TimeControl "5400+30"]

1. d4 {[%emt 0:0:7]} d5 {[%emt 0:0:4]} 2. c4 {[%emt 0:0:16]} e6 {[%emt 0:0:3]} 3. Nf3 {[%emt 0:0:21]} Nf6 {[%emt 0:0:9]} 4. Nc3 {[%emt 0:0:24]} Be7 {[%emt 0:0:5]} 5. cxd5 {[%emt 0:0:22]} exd5 {[%emt 0:0:8]} 6. Bf4 {[%emt 0:0:20]} c6 {[%emt 0:0:24]} 7. h3 {[%emt 0:0:19]} O-O {[%emt 0:8:54]} 8. e3 {[%emt 0:0:25]} Re8 {[%emt 0:5:20]} 9. Bd3 {[%emt 0:1:40]} Nbd7 {[%emt 0:0:42]} 10. O-O {[%emt 0:1:17]} Nf8 {[%emt 0:1:32]} 11. Bh2 {[%emt 0:2:17]} Ng6 {[%emt 0:0:47]} 12. Ne5 {[%emt 0:0:48]} Bd6 {[%emt 0:6:38]} 13. f4 {[%emt 0:2:21]} Qe7 {[%emt 0:9:17]} 14. Qc2 {[%emt 0:10:41]} b5 {[%emt 0:12:42]} 15. Nxc6 {[%emt 0:14:8]} Qxe3+ {[%emt 0:0:13]} 16. Kh1 {[%emt 0:0:12]} Bb7 {[%emt 0:21:40]} 17. Rf3 {[%emt 0:7:16]} Qe6 {[%emt 0:0:24]} 18. f5 {[%emt 0:11:16]} Qd7 {[%emt 0:0:45]} 19. fxg6 {[%emt 0:2:41]} Bxh2 {[%emt 0:4:37]} 20. gxf7+ {[%emt 0:1:11]} Qxf7 {[%emt 0:1:15]} 21. Bxh7+ {[%emt 0:3:47]} Kh8 {[%emt 0:0:23]} 22. Kxh2 {[%emt 0:15:3]} Bxc6 {[%emt 0:5:55]} 23. Bg6 {[%emt 0:0:52]} Qc7+ {[%emt 0:0:7]} 24. Kh1 {[%emt 0:1:7]} Re7 {[%emt 0:1:30]} 25. Qf2 {[%emt 0:0:49]} b4 {[%emt 0:2:59]} 26. Ne2 {[%emt 0:2:4]} Kg8 {[%emt 0:4:21]} 27. Nf4 {[%emt 0:0:58]} Qd6 {[%emt 0:2:37]} 28. Qh4 {[%emt 0:1:58]} Be8 {[%emt 0:2:46]} 29. Raf1 {[%emt 0:3:36]} Bb5 {[%emt 0:1:48]} 30. Rc1 {[%emt 0:0:49]} Rd8 {[%emt 0:1:52]} 31. Bf5 {[%emt 0:1:28]} Rde8 {[%emt 0:0:54]} 32. Ng6 {[%emt 0:2:3]} Re2 {[%emt 0:1:16]} 33. Ne5 {[%emt 0:2:23]} Qe7 {[%emt 0:1:56]} 34. Bg6 {[%emt 0:1:26]} Rf8 {[%emt 0:0:49]} 35. Bh7+ {[%emt 0:1:4]} 1-0

[Event "Sheffield Masters 2024"]
[White "Pein,Jonathan"]
[Black "Gourlay,Iain"]
[Site "Sheffield"]
[Round "1"]
[Annotator "RC"]
[Result "1/2-1/2"]
[Date "2024.04.10"]
[WhiteElo "2247"]
[BlackElo "2307"]
[PlyCount "98"]
[TimeControl "5400+30"]

1. e4 {[%emt 0:0:3]} c6 {[%emt 0:0:11]} 2. d4 {[%emt 0:0:6]} d5 {[%emt 0:0:8]} 3. Nc3 {[%emt 0:0:8]} dxe4 {[%emt 0:0:22]} 4. Nxe4 {[%emt 0:0:5]} Nf6 {[%emt 0:0:47]} 5. Nxf6+ {[%emt 0:0:7]} exf6 {[%emt 0:0:6]} 6. c3 {[%emt 0:0:8]} Bd6 {[%emt 0:0:35]} 7. Bd3 {[%emt 0:0:9]} O-O {[%emt 0:0:18]} 8. Qc2 {[%emt 0:0:10]} Re8+ {[%emt 0:0:22]} 9. Ne2 {[%emt 0:0:8]} h5 {[%emt 0:0:13]} 10. O-O {[%emt 0:0:19]} h4 {[%emt 0:0:21]} 11. Nf4 {[%emt 0:0:19]} Nd7 {[%emt 0:9:26]} 12. Qd1 {[%emt 0:0:26]} Nf8 {[%emt 0:22:58]} 13. Qh5 {[%emt 0:0:39]} f5 {[%emt 0:3:57]} 14. Nh3 {[%emt 0:3:5]} Qc7 {[%emt 0:9:49]} 15. Qxh4 {[%emt 0:24:29]} Bxh2+ {[%emt 0:1:2]} 16. Kh1 {[%emt 0:0:2]} Bd6 {[%emt 0:2:13]} 17. Ng5 {[%emt 0:4:58]} g6 {[%emt 0:5:55]} 18. g4 {[%emt 0:11:43]} fxg4 {[%emt 0:17:22]} 19. Kg2 {[%emt 0:1:30]} Qd8 {[%emt 0:6:47]} 20. Rh1 {[%emt 0:17:0]} Qf6 {[%emt 0:0:22]} 21. Bd2 {[%emt 0:2:14]} Be6 {[%emt 0:4:58]} 22. c4 {[%emt 0:3:15]} b5 {[%emt 0:4:52]} 23. b3 {[%emt 0:15:30]} bxc4 {[%emt 0:0:10]} 24. bxc4 {[%emt 0:0:35]} c5 {[%emt 0:1:46]} 25. Qh6 {[%emt 0:5:26]} cxd4 {[%emt 0:3:6]} 26. Ne4 {[%emt 0:0:40]} Qf3+ {[%emt 0:0:46]} 27. Kg1 {[%emt 0:0:19]} Be5 {[%emt 0:0:17]} 28. Qg5 {[%emt 0:4:6]} f5 {[%emt 0:2:16]} 29. Nf6+ {[%emt 0:3:27]} Kf7 {[%emt 0:0:27]} 30. Nxe8 {[%emt 0:0:30]} Rxe8 {[%emt 0:2:6]} 31. Bf1 {[%emt 0:0:53]} g3 {[%emt 0:0:22]} 32. fxg3 {[%emt 0:0:34]} Bxg3 {[%emt 0:0:13]} 33. Rh8 {[%emt 0:3:15]} Bd7 {[%emt 0:1:22]} 34. Bg2 {[%emt 0:0:16]} Qf2+ {[%emt 0:0:5]} 35. Kh1 {[%emt 0:0:2]} Re2 {[%emt 0:1:8]} 36. Rxf8+ {[%emt 0:0:52]} Kxf8 {[%emt 0:0:13]} 37. Qf6+ {[%emt 0:0:56]} Ke8 {[%emt 0:0:34]} 38. Qxg6+ {[%emt 0:0:5]} Kd8 {[%emt 0:0:20]} 39. Ba5+ {[%emt 0:0:56]} Bc7 {[%emt 0:0:45]} 40. Qf6+ {[%emt 0:0:24]} Ke8 {[%emt 0:0:48]} 41. Qh8+ {[%emt 0:0:14]} Ke7 {[%emt 0:0:21]} 42. Bb4+ {[%emt 0:0:43]} Bd6 {[%emt 0:0:44]} 43. Qg7+ {[%emt 0:0:18]} Kd8 {[%emt 0:0:11]} 44. Bxd6 {[%emt 0:0:52]} Qh4+ {[%emt 0:0:41]} 45. Kg1 {[%emt 0:0:31]} Qf2+ {[%emt 0:0:5]} 46. Kh1 {[%emt 0:0:13]} Qh4+ {[%emt 0:0:5]} 47. Bh2 {[%emt 0:0:12]} Re1+ {[%emt 0:0:11]} 48. Rxe1 {[%emt 0:0:16]} Qxe1+ {[%emt 0:0:5]} 49. Bg1 {[%emt 0:0:21]} Qh4+ {[%emt 0:0:6]} 1/2-1/2

[Event "Sheffield Masters 2024"]
[White "Wall,Tim P"]
[Black "Ledger,Andrew J"]
[Site "Sheffield"]
[Round "1"]
[Annotator "RC"]
[Result "0-1"]
[Date "2024.04.10"]
[WhiteElo "2197"]
[BlackElo "2336"]
[PlyCount "64"]
[TimeControl "5400+30"]

1. e4 {[%emt 0:0:5]} c6 {[%emt 0:0:21]} 2. d4 {[%emt 0:0:11]} d5 {[%emt 0:0:6]} 3. e5 {[%emt 0:0:9]} Bf5 {[%emt 0:0:40]} 4. h4 {[%emt 0:0:21]} a6 {[%emt 0:0:32]} 5. h5 {[%emt 0:0:26]} c5 {[%emt 0:1:2]} 6. dxc5 {[%emt 0:1:53]} Nc6 {[%emt 0:2:31]} 7. Bd3 {[%emt 0:3:50]} Bxd3 {[%emt 0:3:38]} 8. cxd3 {[%emt 0:1:17]} Nxe5 {[%emt 0:6:16]} 9. d4 {[%emt 0:6:39]} Nc6 {[%emt 0:0:12]} 10. Nf3 {[%emt 0:0:25]} e6 {[%emt 0:8:13]} 11. Nc3 {[%emt 0:4:3]} b6 {[%emt 0:11:50]} 12. cxb6 {[%emt 0:13:7]} Qxb6 {[%emt 0:0:21]} 13. O-O {[%emt 0:6:54]} Bd6 {[%emt 0:7:43]} 14. h6 {[%emt 0:1:51]} gxh6 {[%emt 0:4:6]} 15. Re1 {[%emt 0:4:35]} Nge7 {[%emt 0:4:19]} 16. Bxh6 {[%emt 0:5:41]} Rg8 {[%emt 0:3:15]} 17. Rc1 {[%emt 0:1:49]} Rg6 {[%emt 0:3:20]} 18. Qd2 {[%emt 0:7:56]} Rg4 {[%emt 0:3:2]} 19. Be3 {[%emt 0:10:41]} Kf8 {[%emt 0:9:20]} 20. Ne5 {[%emt 0:4:3]} Bxe5 {[%emt 0:2:52]} 21. dxe5 {[%emt 0:0:14]} Qb7 {[%emt 0:6:22]} 22. Qe2 {[%emt 0:8:48]} Rg6 {[%emt 0:1:52]} 23. Qh5 {[%emt 0:2:17]} Kg8 {[%emt 0:1:59]} 24. Bg5 {[%emt 0:3:36]} Nf5 {[%emt 0:3:5]} 25. Na4 {[%emt 0:4:7]} Ng7 {[%emt 0:9:2]} 26. Qh4 {[%emt 0:1:7]} Nf5 {[%emt 0:0:3]} 27. Qf4 {[%emt 0:1:4]} h6 {[%emt 0:0:28]} 28. Bf6 {[%emt 0:0:19]} Kh7 {[%emt 0:0:34]} 29. Nc5 {[%emt 0:2:11]} Qb6 {[%emt 0:0:42]} 30. g3 {[%emt 0:1:58]} Rag8 {[%emt 0:0:43]} 31. Kh2 {[%emt 0:0:29]} Ncd4 {[%emt 0:2:2]} 32. Na4 {[%emt 0:2:38]} Qa5 {[%emt 0:1:26]} 0-1

[Event "Sheffield Masters 2024"]
[White "Nagy,Gabor"]
[Black "Chow,Samuel"]
[Site "Sheffield"]
[Round "2.1"]
[Annotator "TA"]
[Result "1/2-1/2"]
[Date "2024.04.11"]
[WhiteElo "2436"]
[BlackElo "2350"]
[PlyCount "53"]
[TimeControl "5400+30"]

{[%evp 11,53,12,20,0,3,20,20,0,0,0,0,0,0,-2,0,0,0,-24,-25,-11,0,-27,-14,-15,0,-25,9,6,10,4,9,10,9,-16,-7,-5,-8,-2,-3,-8,-7,-3,-7,-8]} 1. c4 {[%emt 0:0:32]} c5 {[%emt 0:0:13]} 2. Nf3 {[%emt 0:1:39]} Nf6 {[%emt 0:0:12]} 3. Nc3 {[%emt 0:0:34]} Nc6 {[%emt 0:0:11]} 4. d4 {[%emt 0:1:8]} cxd4 {[%emt 0:0:10]} 5. Nxd4 {[%emt 0:0:9]} e6 {[%emt 0:0:22]} 6. a3 {[%emt 0:0:48]} Bc5 {[%emt 0:0:35][%cal Yf8c5,Yc5b6,Yb6c7,Yc7e5][%mdl 32]} 7. Nb3 {[%emt 0:0:19]} Bb6 {[%emt 0:0:25]} 8. c5 {[%emt 0:0:21]} Bc7 {[%emt 0:0:12]} 9. g3 {[%emt 0:0:23]} O-O {[%emt 0:0:39]} 10. Bg2 {[%emt 0:0:8]} b6 {[%emt 0:1:0]} 11. O-O {[%emt 0:0:53]} Be5 {[%emt 0:0:35]} 12. a4 {[%emt 0:0:37]} bxc5 {[%emt 0:4:26]} 13. Nxc5 {[%emt 0:1:16]} d5 {[%emt 0:1:18]} 14. Nd3 {[%emt 0:3:16]} Bxc3 {[%emt 0:4:8]} 15. bxc3 {[%emt 0:1:9]} Ba6 {[%emt 0:0:39] Against c4} 16. Ba3 {[%emt 0:1:43]} Re8 {[%emt 0:0:19]} 17. Nc5 {[%emt 0:0:12]} Qa5 {[%emt 0:11:5]} 18. Re1 {[%emt 0:1:59]} Rab8 {[%emt 0:14:25]} 19. e4 {[%emt 0:3:59] The position is equal.} Nxe4 {[%emt 0:3:17]} 20. Nxe4 {[%emt 0:0:47]} dxe4 {[%emt 0:0:6]} 21. Bxe4 {[%emt 0:0:18]} Rbc8 {[%emt 0:2:17]} 22. Qf3 {[%emt 0:3:22]} (22. Qd6 $5 Bb7 23. Qf4 $11 )Ne5 {[%emt 0:3:52]} 23. Bxh7+ {[%emt 0:3:50]} Kxh7 {[%emt 0:0:42]} 24. Qh5+ {[%emt 0:0:9]} Kg8 {[%emt 0:0:3][%cal Yf7f5] [#] aiming for ...f5!} 25. Qxe5 {[%emt 0:1:49]} Qxc3 {[%emt 0:1:23]} 26. Qxc3 {[%emt 0:0:41]} Rxc3 {[%emt 0:0:7]} 27. Rec1 {[%emt 0:0:4] Not much happened in this game.   Weighted Error Value: White=0.08 (flawless) /Black=0.05 (flawless) .  Inaccurate:     	White=1     	Black=1      OK:         	White=6     	Black=8      Best:        	---       	Black=1} 1/2-1/2

[Event "Sheffield Masters 2024"]
[White "Gourlay,Iain"]
[Black "O`Gorman,Tom"]
[Site "Sheffield"]
[Round "2.2"]
[Annotator "RC"]
[Result "1/2-1/2"]
[Date "2024.04.11"]
[WhiteElo "2307"]
[BlackElo "2321"]
[PlyCount "61"]
[TimeControl "5400+30"]

1. Nf3 {[%emt 0:0:3]} d5 {[%emt 0:0:10]} 2. g3 {[%emt 0:0:12]} Nf6 {[%emt 0:0:22]} 3. Bg2 {[%emt 0:0:19]} c5 {[%emt 0:0:16]} 4. O-O {[%emt 0:1:3]} Nc6 {[%emt 0:0:7]} 5. d4 {[%emt 0:1:2]} e6 {[%emt 0:0:6]} 6. c4 {[%emt 0:0:35]} dxc4 {[%emt 0:0:5]} 7. dxc5 {[%emt 0:1:32]} Qxd1 {[%emt 0:0:46]} 8. Rxd1 {[%emt 0:0:8]} Bxc5 {[%emt 0:0:4]} 9. Nbd2 {[%emt 0:0:26]} c3 {[%emt 0:0:6]} 10. bxc3 {[%emt 0:0:5]} Bd7 {[%emt 0:2:14]} 11. Nb3 {[%emt 0:7:56]} Be7 {[%emt 0:3:23]} 12. Nfd4 {[%emt 0:3:1]} Nxd4 {[%emt 0:2:31]} 13. cxd4 {[%emt 0:6:59]} Nd5 {[%emt 0:0:43]} 14. Bd2 {[%emt 0:3:5]} O-O {[%emt 0:22:15]} 15. e4 {[%emt 0:3:31]} Nf6 {[%emt 0:2:15]} 16. d5 {[%emt 0:2:6]} exd5 {[%emt 0:9:42]} 17. exd5 {[%emt 0:1:50]} Ba3 {[%emt 0:9:25]} 18. Na5 {[%emt 0:6:26]} Bf5 {[%emt 0:3:25]} 19. Nc4 {[%emt 0:7:26]} Bc5 {[%emt 0:0:52]} 20. Be3 {[%emt 0:8:35]} Bxe3 {[%emt 0:18:2]} 21. Nxe3 {[%emt 0:0:7]} Bd7 {[%emt 0:0:4]} 22. d6 {[%emt 0:1:23]} Rab8 {[%emt 0:1:52]} 23. Rac1 {[%emt 0:3:57]} Be6 {[%emt 0:2:33]} 24. Rc7 {[%emt 0:8:41]} Rfd8 {[%emt 0:7:13]} 25. Bxb7 {[%emt 0:15:56]} a5 {[%emt 0:6:59]} 26. Bf3 {[%emt 0:7:30]} Bxa2 {[%emt 0:1:22]} 27. Nf5 {[%emt 0:0:18]} Rb1 {[%emt 0:0:37]} 28. Rxb1 {[%emt 0:4:23]} Bxb1 {[%emt 0:0:5]} 29. Ne7+ {[%emt 0:0:6]} Kf8 {[%emt 0:0:10]} 30. Nc6 {[%emt 0:1:23]} Rxd6 {[%emt 0:0:31]} 31. Nxa5 {[%emt 0:1:23]} 1/2-1/2